bitfinex/quotes_SOLUSD_20260105
["timestamp","ask_amount","ask_price","bid_price","bid_amount"]
[1767650845678,0.66775898,138.17,138.13,2.43899854]
[1767650846183,0.66775898,138.17,138.13,2.46899853]
[1767650848991,0.66775898,138.17,138.13,0.02999999]
[1767650849197,0.66775898,138.17,138.13,2.46899853]
[1767650850772,0.66775898,138.17,138.13,2.43899854]
[1767650856396,0.66775898,138.17,138.13,2.46899853]
[1767650860575,0.66775898,138.17,138.13,0.02999999]
[1767650864898,3.10675752,138.17,138.13,0.02999999]
[1767650865196,3.10675752,138.17,138.11,7.24060531]
[1767650865197,0.66494839,138.16,138.11,9.70960384]
[1767650865396,0.66494839,138.15,138.11,9.70960384]
[1767650865786,0.66494839,138.15,138.12,0.02999999]
[1767650866583,0.66494839,138.15,138.11,7.2706053]
[1767650867101,0.66494839,138.13,138.1,0.12999999]
[1767650867302,0.6349484,138.13,138.1,0.12999999]
[1767650870906,20.53177519,138.18,138.1,0.1]
[1767650870907,0.66494839,138.11,138.1,0.1]
[1767650871700,3.10394693,138.12,138.1,0.1]
[1767650872905,0.66494839,138.12,138.1,0.1]
[1767650873208,3.10394693,138.13,138.1,0.15999998]
[1767650874009,0.67453421,138.12,138.1,0.1]
[1767650875506,3.11353275,138.13,138.1,0.15999998]
[1767650876510,4.48648641,138.13,138.1,0.15999998]
[1767650876683,0.67453421,138.13,138.1,0.15999998]
[1767650876884,0.67453421,138.12,138.1,0.1]
[1767650877809,4.48648641,138.12,138.1,0.1]
[1767650879894,0.67453421,138.11,138.1,0.1]
[1767650880094,4.48648641,138.11,138.1,0.1]
[1767650880295,0.67453421,138.1,138.08,0.1]
[1767650880496,4.48648641,138.1,138.08,0.1]
[1767650880704,0.67453421,138.08,138.06,0.1]
[1767650880896,0.64453422,138.08,138.06,0.1]
[1767650881206,3.8119522,138.09,138.06,0.1]
[1767650881614,3.8119522,138.09,138.06,0.48999997]
[1767650882212,3.8119522,138.1,138.06,7.73317798]
[1767650882914,4.50275718,138.1,138.07,0.38999997]
[1767650883302,18.09839104,138.14,138.09,0.38999997]
[1767650883303,0.69080498,138.13,138.09,0.38999997]
[1767650883504,0.69080498,138.12,138.09,0.38999997]
[1767650884907,0.69080498,138.1,138.07,0.38999997]
[1767650885219,0.18594676,138.1,138.06,7.99603518]
[1767650885419,0.18594676,138.1,138.07,0.65306918]
[1767650886826,7.23910384,138.14,138.08,0.65306918]
[1767650887118,0.69080498,138.11,138.08,0.65306918]
[1767650888508,3.8119522,138.12,138.08,0.65306918]
[1767650888711,3.8119522,138.12,138.09,0.65306918]
[1767650889220,4.50275718,138.12,138.09,0.65306918]
[1767650889408,0.69080498,138.11,138.08,7.89517935]
[1767650891513,0.69080498,138.12,138.09,0.65306918]
[1767650891918,4.50275718,138.13,138.09,0.65306918]
[1767650892110,0.69080498,138.13,138.09,4.46502138]
[1767650893442,4.50275718,138.17,138.13,0.65306918]
[1767650893655,0.69080498,138.17,138.13,0.65306918]
[1767650895153,0.69080498,138.17,138.12,4.46502138]
[1767650896558,0.69080498,138.18,138.15,0.65306918]
[1767650896945,0.69080498,138.18,138.14,4.46502138]
[1767650898253,0.69080498,138.18,138.15,3.8119522]
[1767650899444,0.69080498,138.18,138.14,11.70396599]
[1767650900450,0.69080498,138.18,138.14,11.05089681]
[1767650900848,0.69080498,138.18,138.14,11.70396599]
[1767650901052,0.69080498,138.18,138.15,3.8119522]
[1767650901259,0.69080498,138.18,138.16,3.8119522]
[1767650904781,0.69080498,138.21,138.17,4.46502138]
[1767650905573,0.69080498,138.19,138.15,4.46502138]
[1767650906085,0.69080498,138.19,138.15,11.70332804]
[1767650906748,0.69080498,138.19,138.14,3.8119522]
[1767650907172,0.69080498,138.19,138.14,4.46502138]
[1767650908756,0.69080498,138.19,138.15,3.8119522]
[1767650909381,0.69080498,138.18,138.14,0.65306918]
[1767650909676,0.69080498,138.18,138.15,3.8119522]
[1767650913977,0.68843416,138.19,138.16,4.52630031]
[1767650914168,0.68843416,138.19,138.16,0.71434811]
[1767650914484,0.68843416,138.19,138.16,4.52630031]
[1767650917464,0.68843416,138.2,138.17,0.71434811]
[1767650917668,0.68843416,138.2,138.17,4.52630031]
[1767650918370,0.68843416,138.2,138.17,3.8119522]
[1767650920982,0.68843416,138.2,138.17,4.52630031]
[1767650932094,0.68843416,138.2,138.18,3.8119522]
[1767650933080,0.68843416,138.2,138.17,4.52630031]
[1767650933292,0.68843416,138.2,138.17,0.71434811]
[1767650933492,0.68843416,138.2,138.17,4.52630031]
[1767650934998,0.68843416,138.2,138.18,3.8119522]
[1767650936499,0.68843416,138.2,138.18,2.43638427]
[1767650938819,0.66177938,138.25,138.2,0.66112117]
[1767650938989,0.66177938,138.25,138.23,2.43638427]
[1767650939186,0.66177938,138.25,138.22,2.43638427]
[1767650939511,0.66177938,138.25,138.23,2.43638427]
[1767650939716,0.66177938,138.25,138.22,0.66112117]
[1767650939889,0.66177938,138.25,138.24,2.43638427]
[1767650940089,0.66177938,138.25,138.24,2.37638427]
[1767650940994,0.69668561,138.26,138.22,0.66112117]
[1767650941510,0.69668561,138.26,138.23,2.43638427]
[1767650944007,0.69668561,138.26,138.22,0.66112117]
[1767650944179,0.69668561,138.26,138.22,3.09750544]
[1767650948519,0.69668561,138.26,138.22,0.66112117]
[1767650948687,0.69668561,138.26,138.22,3.09750544]
[1767650949006,0.69668561,138.26,138.23,0.68594595]
[1767650949200,0.69668561,138.26,138.22,3.12233022]
[1767650954595,0.69668561,138.26,138.23,0.68594595]
[1767650956528,0.69668561,138.26,138.19,26.44023145]
[1767650956529,0.69668561,138.24,138.2,0.68594595]
[1767650956811,0.69668561,138.21,138.18,0.68594595]
[1767650958917,0.69668561,138.22,138.18,0.68594595]
[1767650959206,2.43638427,138.23,138.19,0.68594595]
[1767650959207,0.69668561,138.23,138.19,0.68594595]
[1767650959412,0.69668561,138.22,138.18,3.12233022]
[1767650960996,0.69668561,138.22,138.18,0.68594595]
[1767650962408,3.13306988,138.21,138.17,0.68594595]
[1767650962722,0.69668561,138.2,138.17,0.68594595]
[1767650963802,0.69668561,138.19,138.15,0.68594595]
[1767650963997,0.69668561,138.18,138.15,0.68594595]
[1767650965707,0.69668561,138.17,138.13,10.36161842]
[1767650965903,0.69668561,138.15,138.11,3.12233022]
[1767650966527,0.69668561,138.15,138.11,0.68594595]
[1767650966821,0.69668561,138.15,138.11,7.92646749]
[1767650967722,0.69668561,138.15,138.11,10.36285176]
[1767650970816,0.69668561,138.15,138.12,0.68594595]
[1767650973532,0.69668561,138.15,138.12,3.12233022]
[1767650975536,0.69668561,138.15,138.11,3.14687459]
[1767650975911,0.69668561,138.15,138.1,3.14687459]
[1767650977435,0.69668561,138.15,138.11,0.71049032]
[1767650977936,0.69668561,138.15,138.11,3.14687459]
[1767650980336,0.71928276,138.14,138.1,0.71049032]
[1767650982233,0.68928277,138.14,138.1,0.71049032]
[1767650984917,0.68928277,138.14,138.11,0.71049032]
[1767650985832,3.12566704,138.14,138.11,0.71049032]
[1767650986526,0.68928277,138.14,138.11,0.71049032]
[1767650986842,0.71928276,138.12,138.09,20.52765006]
[1767650988838,0.68928277,138.12,138.09,20.52765006]
[1767650992224,0.71928276,138.15,138.1,0.71049032]
[1767650992421,3.15566703,138.12,138.09,13.28609793]
[1767650993042,3.15566703,138.12,138.09,0.71049032]
[1767650993229,0.71928276,138.12,138.09,0.71049032]
[1767650996224,0.71928276,138.12,138.08,7.94061618]
[1767650999141,0.71928276,138.12,138.09,7.94036242]
[1767651000338,0.71928276,138.12,138.09,0.69871781]
[1767651001254,0.67539491,138.15,138.09,7.2415801]
[1767651001562,0.67539491,138.14,138.1,0.68709935]
[1767651001760,0.67539491,138.15,138.12,0.68709935]
[1767651002128,0.67539491,138.15,138.11,0.68709935]
[1767651002524,0.67539491,138.15,138.11,4.49979144]
[1767651003547,0.67539491,138.15,138.11,11.74030698]
[1767651003736,0.67539491,138.15,138.12,0.68709935]
[1767651003944,0.67539491,138.14,138.11,0.68709935]
[1767651005261,0.67539491,138.13,138.09,0.68709935]
[1767651005439,0.64539492,138.12,138.09,0.68709935]
[1767651006645,0.64539492,138.12,138.09,4.49979144]
[1767651007165,11.05139905,138.15,138.1,0.68709935]
[1767651007369,0.67539491,138.14,138.1,0.68709935]
[1767651008644,0.67539491,138.13,138.1,0.68709935]
[1767651013858,0.67539491,138.13,138.1,7.92817698]
[1767651016062,0.67539491,138.13,138.1,11.74086907]
[1767651020071,0.67539491,138.14,138.11,0.68709935]
[1767651020361,0.67539491,138.14,138.11,7.92767784]
[1767651020765,0.67539491,138.14,138.11,0.68709935]
[1767651022876,0.67539491,138.15,138.12,0.68709935]
[1767651023171,0.67539491,138.16,138.13,4.49979144]
[1767651023869,0.67539491,138.16,138.14,3.81269209]
[1767651024858,0.67539491,138.18,138.15,3.81269209]
[1767651025063,0.67539491,138.19,138.17,3.81269209]
[1767651030478,0.67539491,138.21,138.17,4.49979144]
[1767651033274,0.67539491,138.21,138.18,4.47749376]
[1767651034281,0.66779784,138.19,138.15,0.66480167]
[1767651034568,0.66779784,138.19,138.15,4.47749376]
[1767651034770,0.66779784,138.19,138.16,3.81269209]
[1767651034964,0.66779784,138.19,138.16,4.47749376]
[1767651035978,0.66779784,138.19,138.15,4.47749376]
[1767651036165,0.66779784,138.19,138.16,3.81269209]
[1767651037582,0.66779784,138.19,138.16,4.47749376]
[1767651041985,0.66779784,138.19,138.17,3.81269209]
[1767651042570,0.66779784,138.22,138.19,0.66480167]
[1767651042774,0.66779784,138.22,138.2,3.81269209]
[1767651042973,0.66779784,138.22,138.2,3.75269209]
[1767651043171,0.66779784,138.22,138.19,3.81269209]
[1767651049097,0.66779784,138.22,138.19,4.47749376]
[1767651049396,0.66779784,138.22,138.2,3.81269209]
[1767651059677,0.66779784,138.22,138.19,0.66480167]
[1767651059875,0.66779784,138.22,138.19,4.47749376]
[1767651060571,0.66779784,138.22,138.19,3.10086977]
[1767651061306,0.86233413,138.26,138.22,0.72372341]
[1767651061609,0.86233413,138.26,138.25,2.4360681]
[1767651061903,0.86233413,138.26,138.24,2.4360681]
[1767651062996,0.86233413,138.26,138.25,2.4360681]
[1767651063296,0.2,138.27,138.25,2.4360681]
[1767651064200,0.2,138.3,138.27,0.72372341]
[1767651064502,0.2,138.3,138.27,3.09979151]
[1767651064503,0.86233413,138.3,138.27,3.09979151]
[1767651065108,0.2,138.3,138.28,2.4360681]
[1767651065399,0.86233413,138.3,138.28,2.4360681]
[1767651066696,0.86233413,138.31,138.29,2.55e-06]
[1767651066898,0.86233413,138.31,138.29,6.47e-06]
[1767651066899,0.2,138.31,138.29,6.47e-06]
[1767651067077,0.86233413,138.32,138.3,2.54e-06]
[1767651067276,0.86233413,138.32,138.31,2.54e-06]
[1767651068204,0.66233413,138.31,138.27,7.232155]
[1767651068410,0.66233413,138.31,138.3,2.54e-06]
[1767651068699,0.86233413,138.32,138.3,2.54e-06]
[1767651069903,0.86233413,138.32,138.29,2.54e-06]
[1767651071381,0.86233413,138.32,138.3,2.4360681]
[1767651071581,0.86233413,138.32,138.3,1.96283806]
[1767651075904,0.86233413,138.32,138.29,3.15979151]
[1767651077986,0.66233413,138.31,138.27,2.4360681]
[1767651078794,0.66233413,138.31,138.27,3.15979151]
[1767651078995,0.66233413,138.31,138.27,0.72372341]
[1767651079408,0.66233413,138.3,138.27,0.72372341]
[1767651081110,0.66233413,138.31,138.28,3.15979151]
[1767651082005,0.86233413,138.32,138.29,0.72372341]
[1767651084015,0.86233413,138.32,138.29,3.15979151]
[1767651087414,0.2,138.32,138.29,3.15979151]
[1767651087595,0.2,138.32,138.3,0.72372341]
[1767651090918,0.2,138.32,138.3,3.15979151]
[1767651091220,0.2,138.32,138.3,0.72372341]
[1767651092709,0.90237275,138.32,138.29,3.10162287]
[1767651094818,0.70237275,138.31,138.27,3.10162287]
[1767651095021,0.70237275,138.31,138.27,2.4360681]
[1767651095219,0.70237275,138.3,138.25,21.07863311]
[1767651095399,0.70237275,138.3,138.26,3.10162287]
[1767651095807,0.70237275,138.3,138.27,3.10162287]
[1767651096007,0.70237275,138.3,138.25,7.23307834]
[1767651096299,0.70237275,138.3,138.26,3.10162287]
[1767651097923,0.70237275,138.3,138.26,10.3343364]
[1767651098113,0.70237275,138.3,138.27,2.4360681]
[1767651098508,7.42983543,138.32,138.28,3.10162287]
[1767651098509,0.70237275,138.31,138.28,3.10162287]
[1767651098823,0.70237275,138.31,138.29,2.4360681]
[1767651100630,0.2,138.32,138.29,0.66555477]
[1767651101206,0.90237275,138.32,138.29,0.66555477]
[1767651107139,3.33844085,138.32,138.29,0.66555477]
[1767651110634,0.90237275,138.32,138.29,0.66555477]
[1767651111555,0.70237275,138.31,138.28,0.66555477]
[1767651113024,0.2,138.32,138.29,0.66555477]
[1767651113346,0.2,138.32,138.3,0.66555477]
[1767651115360,0.2,138.33,138.31,0.69573382]
[1767651115521,0.2,138.33,138.32,0.54347108]
[1767651116030,0.2,138.33,138.31,2.97953918]
[1767651116821,0.65858827,138.32,138.3,7.23057424]
[1767651117020,0.65858827,138.32,138.26,0.54347108]
[1767651117251,0.65858827,138.32,138.29,0.54347108]
[1767651117451,3.09465637,138.32,138.28,0.54347108]
[1767651117622,0.65858827,138.32,138.28,0.54347108]
[1767651117958,3.09465637,138.32,138.28,0.54347108]
[1767651119439,0.65858827,138.31,138.28,0.54347108]
[1767651120132,0.65858827,138.28,138.25,13.72347108]
[1767651120532,0.65858827,138.29,138.25,20.95664256]
[1767651121940,0.66131957,138.3,138.26,7.77610844]
[1767651122123,0.66131957,138.3,138.26,11.57949737]
[1767651122523,0.66131957,138.3,138.27,3.80338893]
[1767651123119,0.66131957,138.3,138.27,4.34686001]
[1767651123349,0.66131957,138.31,138.27,11.57903757]
[1767651123546,0.66131957,138.31,138.27,7.77564864]
[1767651123847,0.66131957,138.31,138.27,11.57903757]
[1767651124965,0.66131957,138.31,138.28,4.34686001]
[1767651126540,0.66131957,138.32,138.28,4.34686001]
[1767651129845,0.66131957,138.32,138.28,11.57851341]
[1767651136253,0.66131957,138.32,138.29,0.54347108]
[1767651138556,0.2,138.33,138.31,0.54347108]
[1767651138756,0.2,138.33,138.31,4.34686001]
[1767651140063,0.2,138.33,138.31,0.54347108]
[1767651140356,0.86131957,138.33,138.31,3.80338893]
[1767651142564,0.2,138.33,138.31,4.34686001]
[1767651142860,0.86131957,138.33,138.31,3.80338893]
[1767651144861,0.2,138.33,138.31,4.34686001]
[1767651147465,0.86131957,138.33,138.31,3.80338893]
[1767651153475,0.86131957,138.33,138.3,11.57724255]
[1767651154275,0.86131957,138.33,138.3,4.34686001]
[1767651154877,0.86131957,138.33,138.3,0.54347108]
[1767651155074,0.70358642,138.3,138.24,7.91914425]
[1767651155276,3.80338893,138.29,138.24,11.03689982]
[1767651155457,3.77338894,138.29,138.24,11.03689982]
[1767651156053,3.77338894,138.29,138.24,11.61037089]
[1767651156861,3.77338894,138.29,138.24,7.80698196]
[1767651157374,0.70358642,138.28,138.24,7.23351089]
[1767651157587,0.67358643,138.28,138.24,7.83698195]
[1767651158879,0.64358644,138.28,138.24,7.83698195]
[1767651159057,3.80338893,138.28,138.24,7.83698195]
[1767651160465,3.80338893,138.3,138.25,3.80338893]
[1767651160976,0.70358642,138.29,138.25,3.80338893]
[1767651161776,0.70358642,138.29,138.25,4.43685998]
[1767651163499,0.70358642,138.29,138.25,11.67005374]
[1767651166381,0.70358642,138.29,138.26,3.80338893]
[1767651170098,0.70358642,138.29,138.25,11.67005374]
[1767651173577,0.70358642,138.3,138.27,0.63347105]
[1767651174374,0.70358642,138.3,138.26,4.43685998]
[1767651176186,0.70358642,138.3,138.26,11.66910787]
[1767651176595,0.70358642,138.3,138.27,4.43685998]
[1767651176799,0.68421704,138.31,138.27,4.43685998]
[1767651176998,0.68421704,138.31,138.28,4.43685998]
[1767651177582,0.68421704,138.32,138.29,0.63347105]
[1767651177978,0.68421704,138.32,138.29,4.43685998]
[1767651178290,0.68421704,138.32,138.29,11.66791737]
[1767651180207,0.2,138.33,138.29,7.23105739]
[1767651180501,0.68421704,138.34,138.32,2.43131096]
[1767651180706,0.68421704,138.34,138.31,0.63347105]
[1767651180883,0.2,138.35,138.32,0.71932861]
[1767651181081,0.2,138.35,138.34,2.43131096]
[1767651181298,0.2,138.36,138.34,3.15063957]
[1767651181605,0.2,138.37,138.35,2.43131096]
[1767651181985,0.2,138.37,138.34,3.15063957]
[1767651182501,0.2,138.37,138.34,10.37886756]
[1767651182883,0.88379096,138.37,138.35,2.43131096]
[1767651183805,0.2,138.37,138.36,2.43131096]
[1767651183982,0.88379096,138.38,138.36,2.43131096]
[1767651184183,0.88379096,138.38,138.37,2.43131096]
[1767651184388,0.88379096,138.39,138.37,2.43131096]
[1767651185511,0.68379096,138.4,138.38,2.43131096]
[1767651185992,7.42401184,138.43,138.38,2.43131096]
[1767651186191,0.68379096,138.42,138.39,2.43131096]
[1767651188807,0.68379096,138.42,138.38,3.15063957]
[1767651190107,0.68379096,138.41,138.35,0.71932861]
[1767651190305,0.68379096,138.39,138.36,2.43131096]
[1767651190700,0.68379096,138.39,138.35,3.15063957]
[1767651190899,0.68379096,138.39,138.35,0.71932861]
[1767651191098,0.68379096,138.39,138.35,3.15063957]
[1767651191282,0.68379096,138.38,138.34,0.71932861]
[1767651191483,0.68379096,138.38,138.34,10.37903154]
[1767651191923,0.68379096,138.38,138.34,0.71932861]
[1767651192207,0.68379096,138.35,138.32,0.71932861]
[1767651192512,0.68379096,138.34,138.3,0.71932861]
[1767651192709,3.11510192,138.33,138.29,0.71932861]
[1767651192888,0.68379096,138.32,138.29,0.71932861]
[1767651193282,0.68379096,138.32,138.28,7.95072757]
[1767651193684,0.68379096,138.31,138.27,7.95149945]
[1767651194514,0.68379096,138.31,138.26,33.69253]
[1767651194515,0.68379096,138.3,138.26,7.95203481]
[1767651194893,3.11510192,138.3,138.26,0.71932861]
[1767651195097,0.68379096,138.29,138.26,0.71932861]
[1767651195289,0.65379097,138.29,138.26,0.71932861]
[1767651196495,0.65379097,138.29,138.25,7.95250651]
[1767651196685,0.65379097,138.29,138.26,0.71932861]
[1767651196893,0.65379097,138.29,138.26,7.95201525]
[1767651197409,0.65379097,138.29,138.26,10.38332621]
[1767651198112,0.68379096,138.32,138.27,3.15063957]
[1767651198292,0.68379096,138.32,138.28,0.71932861]
[1767651199216,0.68379096,138.32,138.27,10.38270135]
[1767651199388,0.68379096,138.31,138.27,10.38270135]
[1767651199588,0.68379096,138.31,138.27,7.95139039]
[1767651200817,3.11510192,138.31,138.27,7.95139039]
[1767651201117,0.68379096,138.3,138.27,7.23206178]
[1767651201318,0.68379096,138.3,138.26,7.95194301]
[1767651201514,0.68379096,138.29,138.26,0.71932861]
[1767651202820,0.68379096,138.29,138.25,7.9523981]
[1767651203121,0.68379096,138.29,138.25,10.38370906]
[1767651203298,0.68379096,138.29,138.25,7.9523981]
[1767651204015,0.68379096,138.28,138.24,7.95296022]
[1767651204594,0.68379096,138.26,138.22,3.15063957]
[1767651204794,2.71745466,138.26,138.22,0.71932861]
[1767651205922,2.43131096,138.26,138.22,0.71932861]
[1767651206722,3.11510192,138.26,138.22,7.95401419]
[1767651208826,0.68379096,138.26,138.22,7.95401419]
[1767651209008,0.68379096,138.26,138.22,10.38532515]
[1767651209824,0.68379096,138.26,138.23,0.71932861]
[1767651211226,0.7228286,138.27,138.24,0.71587331]
[1767651211432,0.7228286,138.28,138.25,0.71587331]
[1767651214127,0.7228286,138.28,138.24,0.71587331]
[1767651218305,0.7228286,138.28,138.25,0.71587331]
[1767651219326,0.52651769,138.27,138.24,0.71587331]
[1767651220432,3.15413956,138.28,138.24,0.71587331]
[1767651223032,2.95977212,138.25,138.22,0.71587331]
[1767651223326,0.71894146,138.23,138.2,7.23563105]
[1767651223504,0.68894147,138.23,138.2,7.23563105]
[1767651223709,0.65894148,138.23,138.2,7.23563105]
[1767651224640,0.62894149,138.23,138.2,7.23563105]
[1767651224833,0.62894149,138.23,138.19,7.23626222]
[1767651225316,2.43131096,138.22,138.18,36.81641051]
[1767651225516,2.43131096,138.23,138.19,0.71587331]
[1767651226024,2.43131096,138.23,138.19,7.95221289]
[1767651226536,3.15413956,138.23,138.19,7.95221289]
[1767651227231,0.34831775,138.22,138.19,7.23633958]
[1767651227937,3.15413956,138.23,138.19,7.95221289]
[1767651228810,2.43131096,138.22,138.19,0.71587331]
[1767651230012,0.7228286,138.25,138.2,0.71587331]
[1767651230213,0.7228286,138.23,138.2,0.71587331]
[1767651230832,2.77962871,138.24,138.21,0.71587331]
[1767651231345,0.7228286,138.26,138.22,0.71587331]
[1767651231724,2.43131096,138.27,138.22,0.71587331]
[1767651232028,2.77962871,138.27,138.23,0.71587331]
[1767651233324,2.77962871,138.27,138.24,0.71587331]
[1767651233646,3.15413956,138.28,138.24,0.71587331]
[1767651234150,0.34831775,138.27,138.24,0.71587331]
[1767651234528,3.11385817,138.28,138.24,0.71587331]
[1767651235544,3.11385817,138.28,138.25,0.6542826]
[1767651235545,0.68254721,138.28,138.25,0.6542826]
[1767651235736,0.68254721,138.29,138.25,3.08559356]
[1767651236929,0.68254721,138.29,138.25,10.31842488]
[1767651237133,0.68254721,138.29,138.26,0.6542826]
[1767651237341,3.11385817,138.3,138.26,0.6542826]
[1767651238747,3.11385817,138.31,138.27,0.6542826]
[1767651239322,0.68254721,138.31,138.27,0.6542826]
[1767651239534,3.11385817,138.31,138.27,0.6542826]
[1767651240225,0.68254721,138.32,138.28,0.6542826]
[1767651240848,0.68254721,138.32,138.29,0.70013275]
[1767651242249,13.87081215,138.33,138.29,4.50171336]
[1767651242437,0.69081215,138.33,138.3,0.70013275]
[1767651244646,0.69081215,138.33,138.3,0.64013275]
[1767651249453,0.69081215,138.33,138.3,0.58013275]
[1767651250048,0.49881404,138.32,138.27,20.41215316]
[1767651250234,0.49881404,138.32,138.27,24.21373377]
[1767651250636,0.49881404,138.32,138.27,11.03373377]
[1767651251045,0.69081215,138.33,138.28,3.80158061]
[1767651251358,0.69081215,138.33,138.3,0.70013275]
[1767651251930,0.69081215,138.34,138.3,0.70013275]
[1767651252634,0.69081215,138.34,138.31,0.70013275]
[1767651253136,3.80158061,138.35,138.31,0.70013275]
[1767651253437,0.69081215,138.35,138.32,0.70013275]
[1767651255053,0.69081215,138.35,138.31,11.03170767]
[1767651255255,0.69081215,138.35,138.32,0.70013275]
[1767651257031,13.67881404,138.36,138.32,0.70013275]
[1767651258137,13.67881404,138.36,138.32,0.64013275]
[1767651258553,0.69081215,138.35,138.32,0.64013275]
[1767651259353,0.55821404,138.34,138.3,11.03201973]
[1767651259563,0.69081215,138.35,138.3,11.03201973]
[1767651260055,0.69081215,138.35,138.31,7.23012158]
[1767651260358,0.69081215,138.35,138.32,0.70013275]
[1767651276774,13.83958778,138.36,138.33,0.70023186]
[1767651276975,127.40817339,138.38,138.33,0.70023186]
[1767651277170,127.40817339,138.38,138.34,0.70023186]
[1767651277171,0.65958778,138.37,138.34,0.70023186]
[1767651280581,0.65958778,138.38,138.35,4.50181247]
[1767651280784,0.65958778,138.38,138.35,3.80158061]
[1767651282188,0.65958778,138.4,138.36,0.70023186]
[1767651282372,0.85958778,138.42,138.38,0.70023564]
[1767651282562,0.85958778,138.42,138.39,4.50181247]
[1767651284062,0.2,138.42,138.4,0.70023186]
[1767651284262,0.2,138.42,138.39,3.80158061]
[1767651284481,5.37972336,138.43,138.39,3.80158061]
[1767651286292,5.37972336,138.43,138.39,4.50181247]
[1767651288974,5.37972336,138.43,138.39,0.70023186]
[1767651289175,5.37972336,138.43,138.39,4.50181247]
[1767651289394,4.87972336,138.43,138.39,4.50181247]
[1767651293415,4.87972336,138.43,138.4,4.50181247]
[1767651293585,4.87972336,138.43,138.4,4.44181247]
[1767651294602,4.22013558,138.43,138.4,3.80158061]
[1767651295475,0.69705942,138.42,138.4,3.80158061]
[1767651295778,4.917195,138.43,138.41,11.0264921]
[1767651296196,4.917195,138.43,138.42,3.03397534]
[1767651296979,0.2,138.44,138.42,3.03397534]
[1767651296980,0.2,138.44,138.43,0.71833622]
[1767651297699,0.2,138.44,138.42,3.75231156]
[1767651298705,0.2,138.44,138.43,0.71833622]
[1767651298910,0.2,138.44,138.43,4.51991683]
[1767651300195,0.2,138.44,138.43,0.71833622]
[1767651300387,0.2,138.44,138.42,0.71833622]
[1767651300784,0.89705942,138.44,138.41,0.71833622]
[1767651301408,0.70430464,138.43,138.4,0.69587923]
[1767651302001,0.2,138.44,138.43,0.69587923]
[1767651302189,0.2,138.45,138.43,3.12403658]
[1767651302707,0.2,138.45,138.41,7.22466399]
[1767651302708,0.70430464,138.44,138.41,0.69587923]
[1767651302885,0.70430464,138.44,138.41,3.12403658]
[1767651304396,0.70430464,138.44,138.39,20.3856622]
[1767651304397,0.90430464,138.45,138.42,3.12403658]
[1767651304908,0.2,138.45,138.44,2.42815735]
[1767651306213,0.2,138.45,138.43,3.12403658]
[1767651308287,0.2,138.45,138.43,0.69587923]
[1767651309923,0.2,138.46,138.45,0.69587923]
[1767651310090,0.70430464,138.48,138.44,2.42815735]
[1767651310413,0.70430464,138.48,138.45,1.51040257]
[1767651310608,0.70430464,138.48,138.45,2.42815735]
[1767651311301,0.70430464,138.48,138.44,2.42815735]
[1767651311487,0.70430464,138.48,138.44,3.12403658]
[1767651311687,0.70430464,138.48,138.45,0.69587923]
[1767651312894,0.59925159,138.45,138.42,0.69587923]
[1767651313095,3.02740894,138.45,138.41,0.69587923]
[1767651313500,0.59925159,138.45,138.41,7.92078441]
[1767651313726,0.59925159,138.45,138.42,0.69587923]
[1767651314887,0.60430464,138.47,138.43,3.12403658]
[1767651315215,13.76430464,138.48,138.44,3.12403658]
[1767651316512,0.099,138.47,138.44,0.69587923]
[1767651316697,0.099,138.47,138.44,3.12403658]
[1767651317499,0.10400251,138.46,138.42,2.42815735]
[1767651317798,0.5942991,138.45,138.41,71.25278981]
[1767651318007,0.5942991,138.45,138.41,10.34866904]
[1767651318313,0.5942991,138.45,138.41,9.65278981]
[1767651318500,0.5942991,138.45,138.41,9.65271687]
[1767651319618,0.10890548,138.44,138.39,22.81376516]
[1767651319814,0.07890549,138.44,138.39,22.81376516]
[1767651319995,2.42815735,138.45,138.4,0.69587923]
[1767651320496,2.42815735,138.45,138.4,3.12403658]
[1767651320698,2.42815735,138.45,138.41,0.69587923]
[1767651320897,9.65106104,138.45,138.41,0.69587923]
[1767651321706,10.22536569,138.45,138.41,0.69587923]
[1767651322414,0.0693,138.44,138.41,0.69587923]
[1767651322609,0.03930001,138.44,138.39,15.58815735]
[1767651323708,2.42815735,138.44,138.38,2.42815735]
[1767651324102,2.42815735,138.44,138.38,10.35047778]
[1767651324616,0.03960001,138.43,138.38,10.35047778]
[1767651325119,0.03960001,138.43,138.4,2.42815735]
[1767651325301,0.03960001,138.44,138.4,0.69587923]
[1767651326005,2.97246201,138.43,138.38,0.69587923]
[1767651326197,2.97246201,138.43,138.39,0.69587923]
[1767651326713,0.54430466,138.43,138.39,0.69587923]
[1767651328642,7.22350582,138.44,138.4,0.69587923]
[1767651328926,2.97246201,138.46,138.41,0.69587923]
[1767651329100,105.62815735,138.47,138.43,0.69587923]
[1767651329295,103.2,138.47,138.43,3.12403658]
[1767651329832,103.2,138.47,138.43,0.69587923]
[1767651330234,103.23960001,138.47,138.43,0.69587923]
[1767651330609,103.23960001,138.47,138.43,20.69587923]
[1767651331802,103.2,138.47,138.44,0.6800371]
[1767651332014,23.35393848,138.48,138.44,0.6800371]